fUSD/lending_fUSD_20240606
["ID","MTS","AMOUNT","RATE_DAILY","PERIOD"]
[328632761,1717641048476,-175.406325,0.00025205,2]
[328632762,1717641048485,-168.6,0.00025233,5]
[328632763,1717641048494,-5000.0,0.00025325,2]
[328632764,1717641048503,-5000.0,0.00025325,2]
[328632765,1717641048512,-5000.0,0.00025325,2]
[328632766,1717641048522,-5000.0,0.00025325,2]
[328632767,1717641048531,-1096.91,0.00025351,2]
[328632768,1717641048540,-2100.0,0.00025457,2]
[328632769,1717641048549,-1300.0,0.00025457,2]
[328632770,1717641048561,-152.0,0.00025465,6]
[328632771,1717641048571,-15899.50034273,0.00025536,2]
[328632772,1717641048580,-162.2,0.0002589,2]
[328632773,1717641048588,-312.98928866,0.000259,2]
[328632774,1717641048598,-152.0,0.00025907,7]
[328632775,1717641048608,-150.0,0.00026,2]
[328632776,1717641048617,-16786.49195776,0.00026,5]
[328632777,1717641048626,-167.446165,0.00026,7]
[328632778,1717641048636,-180.847891,0.00026,7]
[328632779,1717641048645,-180.847891,0.00026,7]
[328632780,1717641048655,-154.583742,0.00026,7]
[328632781,1717641048663,-255.19354,0.00026,7]
[328632782,1717641048672,-153.527676,0.00026,7]
[328632783,1717641048681,-255.19354,0.00026,7]
[328632784,1717641048690,-154.088973,0.00026,7]
[328632785,1717641048699,-269.754484,0.00026,7]
[328632786,1717641048708,-162.179171,0.00026,7]
[328632787,1717641048717,-157.383291,0.00026,7]
[328632788,1717641048726,-156.643598,0.00026,7]
[328632789,1717641048736,-151.0,0.00026,7]
[328632790,1717641048746,-152.671405,0.00026,7]
[328632791,1717641048755,-151.0,0.00026,7]
[328632792,1717641048764,-151.0,0.00026,7]
[328632793,1717641048773,-175.104882,0.00026,7]
[328632794,1717641048783,-151.0,0.00026,7]
[328632795,1717641048792,-1610.47027,0.00026,7]
[328632796,1717641048801,-1610.47027,0.00026,7]
[328632797,1717641048810,-386.24227,0.00026,7]
[328632798,1717641048820,-386.24227,0.00026,7]
[328632799,1717641048830,-492.500832,0.00026,7]
[328632800,1717641048839,-492.500832,0.00026,7]
[328632801,1717641048849,-1300.0,0.00026005,2]
[328632802,1717641048859,-175.406325,0.00026027,2]
[328632803,1717641048869,-2776.23,0.000261,2]
[328632804,1717641048879,-3334.23,0.000261,2]
[328632805,1717641048888,-168.6,0.00026187,5]
[328632806,1717641048897,-500.0,0.00026279,2]
[328632807,1717641048906,-505.63048163,0.00026279,2]
[328632808,1717641048915,-500.0,0.00026279,2]
[328632809,1717641048925,-12443.74,0.00026301,2]
[328632810,1717641048934,-151.0,0.00026344,7]
[328632811,1717641048943,-151.0,0.00026344,7]
[328632812,1717641048952,-191.040519,0.00026344,7]
[328632813,1717641048961,-151.0,0.00026344,7]
[328632814,1717641048970,-843.06550992,0.00026344,2]
[328632815,1717641048979,-152.0,0.00026349,8]
[328632816,1717641048989,-2100.0,0.00026553,2]
[328632817,1717641048998,-2063.43375414,0.000266,2]
[328632818,1717641049007,-2776.23,0.000266,2]
[328632819,1717641049017,-152.0,0.00026791,9]
[328632820,1717641049028,-3334.23,0.000268,2]
[328632821,1717641049037,-2168.31080611,0.00026807,2]
[328632822,1717641049047,-534.42386631,0.00026807,2]
[328632823,1717641049056,-8237.88928149,0.00026807,2]
[328632824,1717641049066,-175.406325,0.00026849,2]
[328632825,1717641049076,-549.09326146,0.0002691,2]
[328632826,1717641049085,-15899.50034273,0.00026991,2]
[328632827,1717641049094,-4037.20985416,0.00027,2]
[328632828,1717641049103,-1300.0,0.00027,2]
[328632829,1717641049112,-150.42633329,0.00027008,2]
[328632830,1717641049121,-289.82574069,0.00027014,2]
[328632831,1717641049130,-1300.0,0.00027101,2]
[328632832,1717641049139,-1760.53,0.00027123,2]
[328632833,1717641049148,-488.36,0.00027123,2]
[328632834,1717641049158,-168.6,0.0002714,7]
[328632835,1717641049167,-156.84486468,0.00027171,2]
[328632836,1717641049177,-289.82574069,0.00027183,2]
[328632837,1717641049186,-2013.87993913,0.000272,2]
[328632838,1717641049196,-152.0,0.00027233,10]
[328632839,1717641049206,-166.56017299,0.00027233,2]
[328632840,1717641049216,-156.84486468,0.00027242,2]
[328632841,1717641049225,-153.21689567,0.00027266,2]
[328632842,1717641049234,-155.08811757,0.00027278,2]
[328632843,1717641049243,-200.9903715,0.0002736,2]
[328632844,1717641049252,-500.0,0.00027375,2]
[328632845,1717641049261,-500.0,0.00027375,2]
[328632846,1717641049272,-809.41063976,0.0002739,2]
[328632847,1717641049398,-362.14078715,0.00027397,2]
[328632848,1717641049407,-150.0,0.00027397,2]
[328632849,1717641049417,-151.0,0.00027397,7]
[328632850,1717641049427,-151.0,0.00027397,7]
[328632851,1717641049436,-151.0,0.00027397,7]
[328632852,1717641049445,-186.046689,0.00027397,7]
[328632853,1717641049454,-328.513745,0.00027397,7]
[328632854,1717641049463,-328.513745,0.00027397,7]
[328632855,1717641049473,-1180.48,0.00027397,2]
[328632856,1717641049483,-15883.74,0.00027397,2]
[328632857,1717641049493,-176.69,0.00027397,2]
[328632858,1717641049503,-720.44,0.00027397,10]
[328632859,1717641049512,-151.0,0.000274,7]
[328632860,1717641049522,-899.591371,0.000274,2]
[328632861,1717641049531,-1620.43,0.000274,2]
[328632862,1717641049540,-1620.43,0.000274,2]
[328632863,1717641049550,-1620.43,0.000274,2]
[328632864,1717641049560,-1620.43,0.000274,2]
[328632865,1717641049570,-1620.43,0.000274,2]
[328632866,1717641049580,-1620.43,0.000274,2]
[328632867,1717641049588,-1620.43,0.000274,2]
[328632868,1717641049597,-1620.43,0.000274,2]
[328632869,1717641049606,-1620.43,0.000274,2]
[328632870,1717641049615,-1620.43,0.000274,2]
[328632871,1717641049624,-150.42633329,0.00027468,2]
[328632872,1717641049633,-167.05062224,0.00027522,2]
[328632873,1717641049642,-150.0,0.00027534,2]
[328632874,1717641049651,-200.9903715,0.00027559,2]
[328632875,1717641049660,-160.96052044,0.00027604,2]
[328632876,1717641049669,-1096.91,0.00027615,2]
[328632877,1717641049679,-2100.0,0.00027649,2]
[328632878,1717641049688,-153.21689567,0.00027667,2]
[328632879,1717641049697,-151.0,0.00027668,7]
[328632880,1717641049706,-151.0,0.00027668,7]
[328632881,1717641049715,-212.923591,0.00027668,7]
[328632882,1717641049724,-212.923591,0.00027668,7]
[328632883,1717641049733,-161.540739,0.00027669,2]
[328632884,1717641049742,-169.837371,0.00027669,2]
[328632885,1717641049751,-3830.049548,0.00027669,2]
[328632886,1717641049760,-597.138079,0.00027669,2]
[328632887,1717641049770,-5490.405398,0.00027669,2]
[328632888,1717641049780,-199.769339,0.00027669,2]
[328632889,1717641049789,-150.0,0.00027671,2]
[328632890,1717641049799,-175.406325,0.00027671,14]
[328632891,1717641049809,-152.0,0.00027674,11]
[328632892,1717641049818,-2161.85,0.000277,2]
[328632893,1717641049828,-513.665,0.000277,2]
[328632894,1717641049837,-1304.0,0.000277,2]
[328632895,1717641049846,-207.0,0.000277,2]
[328632896,1717641049856,-545.0,0.000277,2]
[328632897,1717641049865,-1519.89640413,0.000277,2]
[328632898,1717641049874,-289.82574069,0.00027735,2]
[328632899,1717641049883,-152.0,0.00027768,2]
[328632900,1717641049892,-200.9903715,0.00027769,2]
[328632901,1717641049901,-289.82574069,0.0002778,2]
[328632902,1717641049910,-150.0,0.00027808,2]
[328632903,1717641049920,-166.66666666,0.0002782,2]
[328632904,1717641049930,-289.82574069,0.00027943,2]
[328632905,1717641049939,-150.0,0.00027945,2]
[328632906,1717641049948,-156.84486468,0.00027949,2]
[328632907,1717641049957,-155.08811757,0.00027964,2]
[328632908,1717641049966,-2776.23,0.00028,2]
[328632909,1717641049976,-205.554543,0.00028,7]
[328632910,1717641049985,-191.645502,0.00028,7]
[328632911,1717641049994,-151.0,0.00028,7]
[328632912,1717641050003,-191.645502,0.00028,7]
[328632913,1717641050013,-151.0,0.00028,7]
[328632914,1717641050024,-488.164556,0.00028,7]
[328632915,1717641050034,-488.164556,0.00028,7]
[328632916,1717641050043,-151.0,0.00028,7]
[328632917,1717641050055,-151.0,0.00028,7]
[328632918,1717641050064,-154.876869,0.00028,7]
[328632919,1717641050074,-151.0,0.00028,7]
[328632920,1717641050083,-151.0,0.00028,7]
[328632921,1717641050093,-52263.06291259,0.00028,8]
[328632922,1717641050103,-3830.049548,0.00028014,2]
[328632923,1717641050112,-597.138079,0.00028014,2]
[328632924,1717641050122,-5490.405398,0.00028014,2]
[328632925,1717641050131,-155.64134392,0.00028047,2]
[328632926,1717641050141,-155.08710264,0.00028082,2]
[328632927,1717641050152,-156.84486468,0.00028086,2]
[328632928,1717641050161,-168.6,0.00028093,7]
[328632929,1717641050170,-152.0,0.00028116,12]
[328632930,1717641050179,-843.06550992,0.00028122,2]
[328632931,1717641050187,-289.82574069,0.00028133,2]
[328632932,1717641050197,-153.21689567,0.00028141,2]
[328632933,1717641050206,-156.10955066,0.00028148,2]
[328632934,1717641050215,-1300.0,0.00028197,2]
[328632935,1717641050224,-3334.23,0.000282,2]
[328632936,1717641050234,-328.513745,0.000282,7]
[328632937,1717641050243,-328.513745,0.000282,7]
[328632938,1717641050254,-155.06917286,0.00028238,2]
[328632939,1717641050263,-200.9903715,0.00028272,2]
[328632940,1717641050274,-289.82574069,0.00028304,2]
[328632941,1717641050283,-166.66666666,0.0002835,2]
[328632942,1717641050292,-3830.049548,0.0002836,2]
[328632943,1717641050301,-597.138079,0.0002836,2]
[328632944,1717641050312,-5490.405398,0.0002836,2]
[328632945,1717641050321,-162.0,0.0002839,16]
[328632946,1717641050331,-165.43406498,0.00028391,2]
[328632947,1717641050341,-166.66666668,0.00028405,2]
[328632948,1717641050350,-151.0,0.00028435,2]
[328632949,1717641050360,-200.9903715,0.00028444,2]
[328632950,1717641050369,-15899.50034273,0.00028445,2]
[328632951,1717641050378,-200.9903715,0.00028469,2]
[328632952,1717641050387,-611.69357137,0.00028471,2]
[328632953,1717641050396,-500.0,0.00028471,2]
[328632954,1717641050406,-150.0,0.00028472,2]
[328632955,1717641050415,-150.42633329,0.00028479,2]
[328632956,1717641050424,-156.84486468,0.00028481,2]
[328632957,1717641050434,-289.82574069,0.00028485,2]
[328632958,1717641050443,-179.59,0.00028493,2]
[328632959,1717641050453,-175.406325,0.00028493,14]
[328632960,1717641050462,-156.84486468,0.00028494,2]
[328632961,1717641050472,-152.0,0.00028558,13]
[328632962,1717641050483,-271.80884354,0.00028558,5]
[328632963,1717641050495,-200.9903715,0.00028601,2]
[328632964,1717641050505,-150.42633329,0.00028624,2]
[328632965,1717641050514,-200.9903715,0.00028626,2]
[328632966,1717641050524,-155.06917286,0.00028645,2]
[328632967,1717641050534,-200.9903715,0.00028659,2]
[328632968,1717641050543,-742.82947635,0.00028664,7]
[328632969,1717641050552,-151.0,0.00028706,7]
[328632970,1717641050564,-3830.049548,0.00028706,2]
[328632971,1717641050573,-597.138079,0.00028706,2]
[328632972,1717641050582,-5490.405398,0.00028706,2]
[328632973,1717641050592,-200.9903715,0.00028719,2]
[328632974,1717641050602,-156.47438802,0.00028721,2]
[328632975,1717641050612,-2100.0,0.00028745,2]
[328632976,1717641050621,-1931.0,0.00028761,2]
[328632977,1717641050630,-155.09211389,0.00028769,2]
[328632978,1717641050641,-500.0,0.000288,7]
[328632979,1717641050650,-289.82574069,0.00028862,2]
[328632980,1717641050659,-272.95,0.000289,15]
[328632981,1717641050669,-1700.0,0.000289,10]
[328632982,1717641050678,-150.5,0.0002891,15]
[328632983,1717641050687,-150.5,0.0002892,15]
[328632984,1717641050696,-54777.41547891,0.0002893,7]
[328632985,1717641050705,-151.0,0.0002893,7]
[328632986,1717641050715,-298.751385,0.0002893,7]
[328632987,1717641050724,-180.847891,0.0002893,7]
[328632988,1717641050733,-180.847891,0.0002893,7]
[328632989,1717641050743,-255.19354,0.0002893,7]
[328632990,1717641050752,-255.19354,0.0002893,7]
[328632991,1717641050762,-151.0,0.0002893,7]
[328632992,1717641050772,-274.861051,0.0002893,7]
[328632993,1717641050782,-151.0,0.0002893,7]
[328632994,1717641050791,-151.0,0.0002893,7]
[328632995,1717641050800,-1610.47027,0.0002893,7]
[328632996,1717641050810,-1610.47027,0.0002893,7]
[328632997,1717641050819,-386.24227,0.0002893,7]
[328632998,1717641050829,-386.24227,0.0002893,7]
[328632999,1717641050839,-492.500832,0.0002893,7]
[328633000,1717641050848,-492.500832,0.0002893,7]
[328633001,1717641050857,-60323.67649173,0.0002898,2]
[328633002,1717641050866,-152.812486,0.0002898,7]
[328633003,1717641050876,-151.0,0.0002898,7]
[328633004,1717641050885,-151.0,0.0002898,7]
[328633005,1717641050894,-281.65272428,0.00029,2]
[328633006,1717641050903,-500.0,0.00029,2]
[328633007,1717641050912,-232.28758566,0.00029,2]
[328633008,1717641050922,-8476.03823245,0.00029,3]
[328633009,1717641050931,-15869.08967081,0.00029,6]
[328633010,1717641050940,-5000.0,0.00029,2]
[328633011,1717641050949,-2715.99357009,0.00029,2]
[328633012,1717641050958,-1487.67918963,0.00029,2]
[328633013,1717641050967,-202.789848,0.00029,7]
[328633014,1717641050976,-10000.0,0.00029,2]
[328633015,1717641050985,-11421.44273833,0.00029,2]
[328633016,1717641050994,-10000.0,0.00029,2]
[328633017,1717641051004,-14549.81116765,0.00029,2]
[328633018,1717641051013,-10175.51913273,0.00029,2]
[328633019,1717641051022,-6561.02597053,0.00029,2]
[328633020,1717641051031,-9660.06916133,0.00029,2]
[328633021,1717641051040,-1350.0,0.00029,2]
[328633022,1717641051049,-155.83638195,0.00029,2]
[328633023,1717641051058,-155.83638195,0.00029,2]
[328633024,1717641051068,-155.83638195,0.00029,2]
[328633025,1717641051077,-155.83638195,0.00029,2]
[328633026,1717641051086,-155.83638195,0.00029,2]
[328633027,1717641051095,-155.83638195,0.00029,2]
[328633028,1717641051105,-155.83638195,0.00029,2]
[328633029,1717641051115,-155.83638195,0.00029,2]
[328633030,1717641051124,-155.83638195,0.00029,2]
[328633031,1717641051135,-155.83638195,0.00029,2]
[328633032,1717641051145,-155.83638195,0.00029,2]
[328633033,1717641051155,-155.83638195,0.00029,2]
[328633034,1717641051164,-155.83638195,0.00029,2]
[328633035,1717641051174,-155.83638195,0.00029,2]
[328633036,1717641051184,-155.83638195,0.00029,2]
[328633037,1717641051193,-155.83638195,0.00029,2]
[328633038,1717641051203,-155.83638195,0.00029,2]
[328633039,1717641051212,-155.83638195,0.00029,2]
[328633040,1717641051221,-155.83638195,0.00029,2]
[328633041,1717641051231,-155.83638195,0.00029,2]
[328633042,1717641051241,-155.83638195,0.00029,2]
[328633043,1717641051253,-155.83638195,0.00029,2]
[328633044,1717641051264,-155.83638195,0.00029,2]
[328633045,1717641051274,-155.83638195,0.00029,2]
[328633046,1717641051283,-155.83638195,0.00029,2]
[328633047,1717641051292,-155.83638195,0.00029,2]
[328633048,1717641051305,-155.83638195,0.00029,2]
[328633049,1717641051314,-155.83638195,0.00029,2]
[328633050,1717641051324,-155.83638195,0.00029,2]
[328633051,1717641051333,-155.83638195,0.00029,2]
[328633052,1717641051343,-155.83638195,0.00029,2]
[328633053,1717641051352,-155.83638195,0.00029,2]
[328633054,1717641051362,-155.83638195,0.00029,2]
[328633055,1717641051372,-155.83638195,0.00029,2]
[328633056,1717641051381,-155.83638195,0.00029,2]
[328633057,1717641051391,-155.83638195,0.00029,2]
[328633058,1717641051399,-155.83638195,0.00029,2]
[328633059,1717641051409,-155.83638195,0.00029,2]
[328633060,1717641051418,-155.83638195,0.00029,2]
[328633061,1717641051427,-155.83638195,0.00029,2]
[328633062,1717641051436,-155.83638195,0.00029,2]
[328633063,1717641051445,-155.83638195,0.00029,2]
[328633064,1717641051454,-155.83638195,0.00029,2]
[328633065,1717641051463,-155.83638195,0.00029,2]
[328633066,1717641051472,-155.83638195,0.00029,2]
[328633067,1717641051481,-155.83638195,0.00029,2]
[328633068,1717641051490,-155.83638195,0.00029,2]
[328633069,1717641051500,-155.83638195,0.00029,2]
[328633070,1717641051509,-155.83638195,0.00029,2]
[328633071,1717641051519,-155.83638195,0.00029,2]
[328633072,1717641051528,-155.83638195,0.00029,2]
[328633073,1717641051537,-155.83638195,0.00029,2]
[328633074,1717641051546,-155.83638195,0.00029,2]
[328633075,1717641051555,-155.83638195,0.00029,2]
[328633076,1717641051568,-155.83638195,0.00029,2]
[328633077,1717641051577,-155.83638195,0.00029,2]
[328633078,1717641051586,-155.83638195,0.00029,2]
[328633079,1717641051596,-155.83638195,0.00029,2]
[328633080,1717641051606,-155.83638195,0.00029,2]
[328633081,1717641051615,-155.83638195,0.00029,2]
[328633082,1717641051624,-155.83638195,0.00029,2]
[328633083,1717641051634,-155.83638195,0.00029,2]
[328633084,1717641051644,-155.83638195,0.00029,2]
[328633085,1717641051655,-155.83638195,0.00029,2]
[328633086,1717641051665,-155.83638195,0.00029,2]
[328633087,1717641051675,-155.83638195,0.00029,2]
[328633088,1717641051684,-155.83638195,0.00029,2]
[328633089,1717641051694,-155.83638195,0.00029,2]
[328633090,1717641051705,-155.83638195,0.00029,2]
[328633091,1717641051715,-155.83638195,0.00029,2]
[328633092,1717641051726,-155.83638195,0.00029,2]
[328633093,1717641051736,-155.83638195,0.00029,2]
[328633094,1717641051746,-155.83638195,0.00029,2]
[328633095,1717641051756,-155.83638195,0.00029,2]
[328633096,1717641051767,-155.83638195,0.00029,2]
[328633097,1717641051776,-155.83638195,0.00029,2]
[328633098,1717641051786,-155.83638195,0.00029,2]
[328633099,1717641051795,-155.83638195,0.00029,2]
[328633100,1717641051804,-155.83638195,0.00029,2]
[328633101,1717641051813,-155.83638195,0.00029,2]
[328633102,1717641051823,-155.83638195,0.00029,2]
[328633103,1717641051832,-155.83638195,0.00029,2]
[328633104,1717641051841,-155.83638195,0.00029,2]
[328633105,1717641051850,-155.83638195,0.00029,2]
[328633106,1717641051860,-155.83638195,0.00029,2]
[328633107,1717641051869,-155.83638195,0.00029,2]
[328633108,1717641051878,-155.83638195,0.00029,2]
[328633109,1717641051887,-155.83638195,0.00029,2]
[328633110,1717641051897,-155.83638195,0.00029,2]
[328633111,1717641051906,-155.83638195,0.00029,2]
[328633112,1717641051915,-155.83638195,0.00029,2]
[328633113,1717641051925,-155.83638195,0.00029,2]
[328633114,1717641051934,-155.83638195,0.00029,2]
[328633115,1717641051944,-155.83638195,0.00029,2]
[328633116,1717641051954,-155.83638195,0.00029,2]
[328633117,1717641051963,-155.83638195,0.00029,2]
[328633118,1717641051972,-155.83638195,0.00029,2]
[328633119,1717641051981,-155.83638195,0.00029,2]
[328633120,1717641051990,-155.83638195,0.00029,2]
[328633121,1717641052000,-155.83638195,0.00029,2]
[328633122,1717641052009,-289.82574069,0.00029008,2]
[328633123,1717641052019,-1757.35,0.00029041,2]
[328633124,1717641052028,-417.06,0.00029041,2]
[328633125,1717641052037,-417.06,0.00029041,2]
[328633126,1717641052046,-417.06,0.00029041,2]
[328633127,1717641052055,-417.06,0.00029041,2]
[328633128,1717641052066,-417.06,0.00029041,2]
[328633129,1717641052075,-417.06,0.00029041,2]
[328633130,1717641052085,-417.06,0.00029041,2]
[328633131,1717641052094,-168.6,0.00029047,7]
[328633132,1717641052104,-173.06061,0.00029048,12]
[328633133,1717641052113,-161.540739,0.00029052,2]
[328633134,1717641052122,-151.0,0.00029052,7]
[328633135,1717641052131,-151.0,0.00029052,7]
[328633136,1717641052141,-212.923591,0.00029052,7]
[328633137,1717641052150,-212.923591,0.00029052,7]
[328633138,1717641052159,-205.554543,0.00029052,7]
[328633139,1717641052168,-191.645502,0.00029052,7]
[328633140,1717641052177,-151.0,0.00029052,7]
[328633141,1717641052186,-191.645502,0.00029052,7]
[328633142,1717641052196,-151.0,0.00029052,7]
[328633143,1717641052205,-488.164556,0.00029052,7]
[328633144,1717641052214,-488.164556,0.00029052,7]
[328633145,1717641052224,-151.0,0.00029052,7]
[328633146,1717641052344,-151.0,0.00029052,7]
[328633147,1717641052354,-151.0,0.00029052,7]
[328633148,1717641052363,-174.866241,0.00029052,7]
[328633149,1717641052373,-3830.049548,0.00029052,2]
[328633150,1717641052383,-597.138079,0.00029052,2]
[328633151,1717641052391,-5490.405398,0.00029052,2]
[328633152,1717641052401,-173.06061,0.00029098,10]
[328633153,1717641052410,-157.93047187,0.00029102,2]
[328633154,1717641052419,-155.09211389,0.00029117,2]
[328633155,1717641052428,-960.85,0.00029178,2]
[328633156,1717641052437,-282.38,0.00029178,2]
[328633157,1717641052446,-175.38,0.00029178,2]
[328633158,1717641052455,-156.84486468,0.00029185,2]
[328633159,1717641052464,-173.06061,0.00029198,12]
[328633160,1717641052473,-4870.0,0.000292,3]
[328633161,1717641052483,-153.21689567,0.00029221,2]
[328633162,1717641052491,-156.84486468,0.00029281,2]
[328633163,1717641052501,-1300.0,0.00029293,2]
[328633164,1717641052510,-1705.41574246,0.00029297,7]
[328633165,1717641052520,-173.06061,0.00029298,14]
[328633166,1717641052529,-156.84486468,0.000293,2]
[328633167,1717641052539,-175.406325,0.00029315,14]
[328633168,1717641052548,-155.64134392,0.00029328,2]
[328633169,1717641052558,-413.00314593,0.000294,7]
[328633170,1717641052571,-413.00314593,0.000294,7]
[328633171,1717641052580,-413.00314593,0.000294,7]
[328633172,1717641052589,-413.00314593,0.000294,7]
[328633173,1717641052598,-413.00314593,0.000294,7]
[328633174,1717641052608,-413.00314593,0.000294,7]
[328633175,1717641052616,-413.00314593,0.000294,7]
[328633176,1717641052626,-413.00314593,0.000294,7]
[328633177,1717641052636,-413.00314593,0.000294,7]
[328633178,1717641052645,-413.00314593,0.000294,7]
[328633179,1717641052655,-413.00314593,0.000294,7]
[328633180,1717641052664,-413.00314593,0.000294,7]
[328633181,1717641052673,-413.00314593,0.000294,7]
[328633182,1717641052682,-413.00314593,0.000294,7]
[328633183,1717641052691,-413.00314593,0.000294,7]
[328633184,1717641052700,-413.00314593,0.000294,7]
[328633185,1717641052709,-413.00314593,0.000294,7]
[328633186,1717641052719,-413.00314593,0.000294,7]
[328633187,1717641052728,-413.00314593,0.000294,7]
[328633188,1717641052737,-413.5,0.000294,7]
[328633189,1717641052747,-1652.0875837,0.000294,7]
[328633190,1717641052756,-1652.0875837,0.000294,7]
[328633191,1717641052766,-1652.0875837,0.000294,7]
[328633192,1717641052776,-1652.0875837,0.000294,7]
[328633193,1717641052786,-1652.0875837,0.000294,7]
[328633194,1717641052796,-1652.0875837,0.000294,7]
[328633195,1717641052805,-1652.0875837,0.000294,7]
[328633196,1717641052815,-1652.0875837,0.000294,7]
[328633197,1717641052824,-1652.0875837,0.000294,7]
[328633198,1717641052833,-1652.0875837,0.000294,7]
[328633199,1717641052842,-1652.0875837,0.000294,7]
[328633200,1717641052851,-1652.0875837,0.000294,7]
[328633201,1717641052861,-1652.0875837,0.000294,7]
[328633202,1717641052871,-1652.0875837,0.000294,7]
[328633203,1717641052880,-1652.0875837,0.000294,7]
[328633204,1717641052890,-1652.0875837,0.000294,7]
[328633205,1717641052900,-1652.0875837,0.000294,7]
[328633206,1717641052909,-1652.0875837,0.000294,7]
[328633207,1717641052919,-151.0,0.000294,7]
[328633208,1717641052928,-328.513745,0.000294,7]
[328633209,1717641052938,-328.513745,0.000294,7]
[328633210,1717641052947,-242.931333,0.000294,7]
[328633211,1717641052955,-300.0,0.000294,10]
[328633212,1717641052965,-346.41110764,0.000294,7]
[328633213,1717641052975,-346.41110764,0.000294,7]
[328633214,1717641052984,-346.41110764,0.000294,7]
[328633215,1717641052994,-346.41110764,0.000294,7]
[328633216,1717641053003,-346.41110764,0.000294,7]
[328633217,1717641053012,-346.41110764,0.000294,7]
[328633218,1717641053023,-346.41110764,0.000294,7]
[328633219,1717641053032,-346.41110764,0.000294,7]
[328633220,1717641053042,-346.41110764,0.000294,7]
[328633221,1717641053051,-346.41110764,0.000294,7]
[328633222,1717641053060,-346.41110764,0.000294,7]
[328633223,1717641053070,-346.41110764,0.000294,7]
[328633224,1717641053080,-346.41110764,0.000294,7]
[328633225,1717641053089,-346.41110764,0.000294,7]
[328633226,1717641053099,-346.41110764,0.000294,7]
[328633227,1717641053108,-346.41110764,0.000294,7]
[328633228,1717641053118,-346.41110764,0.000294,7]
[328633229,1717641053127,-346.41110764,0.000294,7]
[328633230,1717641053137,-346.41110764,0.000294,7]
[328633231,1717641053147,-346.91,0.000294,7]
[328633232,1717641053156,-1385.71943058,0.000294,7]
[328633233,1717641053165,-1385.71943058,0.000294,7]
[328633234,1717641053175,-1385.71943058,0.000294,7]
[328633235,1717641053184,-1385.71943058,0.000294,7]
[328633236,1717641053194,-1385.71943058,0.000294,7]
[328633237,1717641053203,-1385.71943058,0.000294,7]
[328633238,1717641053212,-1385.71943058,0.000294,7]
[328633239,1717641053221,-1385.71943058,0.000294,7]
[328633240,1717641053231,-1385.71943058,0.000294,7]
[328633241,1717641053240,-1385.71943058,0.000294,7]
[328633242,1717641053249,-1385.71943058,0.000294,7]
[328633243,1717641053258,-1385.71943058,0.000294,7]
[328633244,1717641053267,-1385.71943058,0.000294,7]
[328633245,1717641053278,-1385.71943058,0.000294,7]
[328633246,1717641053288,-1385.71943058,0.000294,7]
[328633247,1717641053297,-1385.71943058,0.000294,7]
[328633248,1717641053307,-1385.71943058,0.000294,7]
[328633249,1717641053316,-1385.71943058,0.000294,7]
[328633250,1717641053325,-284.16519327,0.000294,7]
[328633251,1717641053335,-284.16519327,0.000294,7]
[328633252,1717641053344,-284.16519327,0.000294,7]
[328633253,1717641053353,-284.16519327,0.000294,7]
[328633254,1717641053362,-284.16519327,0.000294,7]
[328633255,1717641053371,-284.16519327,0.000294,7]
[328633256,1717641053381,-284.16519327,0.000294,7]
[328633257,1717641053391,-284.16519327,0.000294,7]
[328633258,1717641053401,-284.16519327,0.000294,7]
[328633259,1717641053410,-284.16519327,0.000294,7]
[328633260,1717641053419,-284.16519327,0.000294,7]